[Event "*** SCC Grand Prix: Titled Tuesday Blitz"]
[Site "Chess.com"]
[Date "2020.07.07"]
[Round "8"]
[White "HanSchut"]
[Black "ajian"]
[Result "1-0"]
[WhiteElo "2310"]
[BlackElo "2411"]
[TimeControl "180+1"]
[EndTime "11:37:34 PDT"]
[Termination "HanSchut won by checkmate"]

1. e4 {[%clk 0:03:00.9]} 1... c5 {[%clk 0:02:58.1]} 2. Nf3 {[%clk 0:03:00.7]}
2... Nc6 {[%clk 0:02:54.5]} 3. d4 {[%clk 0:03:00.7]} 3... cxd4 {[%clk
0:02:55.4]} 4. Nxd4 {[%clk 0:03:01.3]} 4... Nf6 {[%clk 0:02:55.7]} 5. Nc3 {[%clk
0:03:01.4]} 5... e5 {[%clk 0:02:55.8]} 6. Ndb5 {[%clk 0:03:01.7]} 6... d6 {[%clk
0:02:56]} 7. Bg5 {[%clk 0:02:52.8]} 7... a6 {[%clk 0:02:55.8]} 8. Na3 {[%clk
0:02:53.3]} 8... b5 {[%clk 0:02:56.7]} 9. Bxf6 {[%clk 0:02:53.1]} 9... gxf6
{[%clk 0:02:57.6]} 10. Nd5 {[%clk 0:02:54]} 10... f5 {[%clk 0:02:58]} 11. c3
{[%clk 0:02:54.5]} 11... Bg7 {[%clk 0:02:57.6]} 12. exf5 {[%clk 0:02:54.2]}
12... Bxf5 {[%clk 0:02:57.6]} 13. Nc2 {[%clk 0:02:55.1]} 13... Be6 {[%clk
0:02:57.6]} 14. Nce3 {[%clk 0:02:51]} 14... Ne7 {[%clk 0:02:56.5]} 15. g3 {[%clk
0:02:48.5]} 15... Nxd5 {[%clk 0:02:56.3]} 16. Nxd5 {[%clk 0:02:48.6]} 16... O-O
{[%clk 0:02:56.7]} 17. Bg2 {[%clk 0:02:48.3]} 17... f5 {[%clk 0:02:56.7]} 18.
O-O {[%clk 0:02:47.7]} 18... a5 {[%clk 0:02:56.5]} 19. a4 {[%clk 0:02:46.8]}
19... bxa4 {[%clk 0:02:36.6]} 20. Rxa4 {[%clk 0:02:46.3]} 20... Rb8 {[%clk
0:02:29.9]} 21. Qa1 {[%clk 0:02:34.5]} 21... Rb5 {[%clk 0:02:14.4]} 22. Rd1
{[%clk 0:02:04.2]} 22... Qb8 {[%clk 0:02:05]} 23. Rxa5 {[%clk 0:01:29.6]} 23...
Rxb2 {[%clk 0:01:46.6]} 24. Ra8 {[%clk 0:01:28.6]} 24... Qb3 {[%clk 0:01:32.5]}
25. Ra3 {[%clk 0:01:13.3]} 25... Qc2 {[%clk 0:01:19.4]} 26. Rf1 {[%clk
0:00:48.1]} 26... e4 {[%clk 0:01:03.6]} 27. Ne3 {[%clk 0:00:36.1]} 27... Qd2
{[%clk 0:00:54.4]} 28. Bh3 {[%clk 0:00:32.8]} 28... Bh6 {[%clk 0:00:41.8]} 29.
Qe1 {[%clk 0:00:25.5]} 29... Qd3 {[%clk 0:00:19]} 30. Ra1 {[%clk 0:00:18.4]}
30... Rxf2 {[%clk 0:00:17.1]} 31. Rxf2 {[%clk 0:00:14]} 31... Bxe3 {[%clk
0:00:17.1]} 32. Rd1 {[%clk 0:00:13.5]} 32... Bxf2+ {[%clk 0:00:16.3]} 33. Kxf2
{[%clk 0:00:14.4]} 33... Qc2+ {[%clk 0:00:15.4]} 34. Kg1 {[%clk 0:00:12.5]}
34... d5 {[%clk 0:00:08.3]} 35. Rc1 {[%clk 0:00:09.5]} 35... Qd3 {[%clk
0:00:08.1]} 36. Rd1 {[%clk 0:00:09.5]} 36... Qc4 {[%clk 0:00:08]} 37. Rd4 {[%clk
0:00:09.2]} 37... Qc5 {[%clk 0:00:07.8]} 38. Kh1 {[%clk 0:00:05.1]} 38... Rc8
{[%clk 0:00:07.6]} 39. Qd2 {[%clk 0:00:02.9]} 39... Qxc3 {[%clk 0:00:07.3]} 40.
Qxc3 {[%clk 0:00:03.7]} 40... Rxc3 {[%clk 0:00:07.2]} 41. Rd1 {[%clk 0:00:03.1]}
41... e3 {[%clk 0:00:05.9]} 42. Bf1 {[%clk 0:00:03]} 42... Rc2 {[%clk 0:00:06]}
43. Re1 {[%clk 0:00:02.4]} 43... d4 {[%clk 0:00:05.9]} 44. Be2 {[%clk
0:00:03.1]} 44... Bd5+ {[%clk 0:00:06.1]} 45. Kg1 {[%clk 0:00:03.5]} 45... Rd2
{[%clk 0:00:06.3]} 46. Kf1 {[%clk 0:00:03.1]} 46... d3 {[%clk 0:00:06.6]} 47.
Bxd3 {[%clk 0:00:03.4]} 47... Rxd3 {[%clk 0:00:06.6]} 48. Ke2 {[%clk 0:00:03.9]}
48... Ra3 {[%clk 0:00:06.3]} 49. Rd1 {[%clk 0:00:04.4]} 49... Ra2+ {[%clk
0:00:06.6]} 50. Kxe3 {[%clk 0:00:04.6]} 50... Be4 {[%clk 0:00:07]} 51. Kf4
{[%clk 0:00:05.2]} 51... Rxh2 {[%clk 0:00:06.3]} 52. Rd7 {[%clk 0:00:04.6]}
52... Rf2+ {[%clk 0:00:06.1]} 53. Kg5 {[%clk 0:00:05.1]} 53... Rg2 {[%clk
0:00:06.2]} 54. Kf6 {[%clk 0:00:05.9]} 54... h6 {[%clk 0:00:06.1]} 55. Rg7+
{[%clk 0:00:05.6]} 55... Kf8 {[%clk 0:00:06.2]} 56. Rg6 {[%clk 0:00:05.9]} 56...
h5 {[%clk 0:00:05.7]} 57. Rh6 {[%clk 0:00:06.5]} 57... Rxg3 {[%clk 0:00:05.7]}
58. Rh8+ {[%clk 0:00:06.7]} 58... Rg8 {[%clk 0:00:06.1]} 59. Rxh5 {[%clk
0:00:07.4]} 59... Ke8 {[%clk 0:00:06.3]} 60. Ke6 {[%clk 0:00:07.8]} 60... Rf8
{[%clk 0:00:06.2]} 61. Rh7 {[%clk 0:00:07.9]} 61... f4 {[%clk 0:00:05.9]} 62.
Re7+ {[%clk 0:00:07.5]} 62... Kd8 {[%clk 0:00:06.3]} 63. Kd6 {[%clk 0:00:07.4]}
63... Bg2 {[%clk 0:00:05.6]} 64. Ra7 {[%clk 0:00:07]} 64... f3 {[%clk
0:00:04.7]} 65. Ra8# {[%clk 0:00:07.2]} 1-0

[Event "*** SCC Grand Prix: Titled Tuesday Blitz"]
[Site "Chess.com"]
[Date "2020.07.07"]
[Round "8"]
[White "andriipalchuk"]
[Black "timator"]
[Result "0-1"]
[WhiteElo "2435"]
[BlackElo "2622"]
[TimeControl "180+1"]
[EndTime "11:37:36 PDT"]
[Termination "timator won by resignation"]

1. e4 {[%clk 0:03:00.9]} 1... e5 {[%clk 0:02:51.2]} 2. Nf3 {[%clk 0:03:00.5]}
2... Nc6 {[%clk 0:02:52.1]} 3. Bb5 {[%clk 0:02:59.8]} 3... a6 {[%clk 0:02:52.5]}
4. Ba4 {[%clk 0:02:59.7]} 4... Nf6 {[%clk 0:02:52.8]} 5. d3 {[%clk 0:03:00.3]}
5... d6 {[%clk 0:02:50]} 6. h3 {[%clk 0:02:59.5]} 6... Be7 {[%clk 0:02:50.4]} 7.
O-O {[%clk 0:02:59.4]} 7... O-O {[%clk 0:02:51]} 8. c3 {[%clk 0:02:58.4]} 8...
b5 {[%clk 0:02:50.8]} 9. Bc2 {[%clk 0:02:58.7]} 9... Bb7 {[%clk 0:02:49.9]} 10.
Re1 {[%clk 0:02:58.9]} 10... Re8 {[%clk 0:02:49.5]} 11. Nbd2 {[%clk 0:02:59.4]}
11... Bf8 {[%clk 0:02:49.1]} 12. Nf1 {[%clk 0:02:59.9]} 12... d5 {[%clk
0:02:49.1]} 13. Ng3 {[%clk 0:02:57.6]} 13... dxe4 {[%clk 0:02:48.8]} 14. dxe4
{[%clk 0:02:57.4]} 14... Qxd1 {[%clk 0:02:48.8]} 15. Rxd1 {[%clk 0:02:58.3]}
15... h6 {[%clk 0:02:49.2]} 16. Be3 {[%clk 0:02:53.5]} 16... Rad8 {[%clk
0:02:49.4]} 17. b4 {[%clk 0:02:47.3]} 17... Nd7 {[%clk 0:02:40.6]} 18. a4 {[%clk
0:02:46.7]} 18... Nb6 {[%clk 0:02:34]} 19. axb5 {[%clk 0:02:43.2]} 19... axb5
{[%clk 0:02:34.9]} 20. Bxb6 {[%clk 0:02:38.7]} 20... cxb6 {[%clk 0:02:35.8]} 21.
Rxd8 {[%clk 0:02:38]} 21... Rxd8 {[%clk 0:02:35.2]} 22. Rd1 {[%clk 0:02:38.7]}
22... Rxd1+ {[%clk 0:02:34.9]} 23. Bxd1 {[%clk 0:02:39.6]} 23... Bd6 {[%clk
0:02:30.7]} 24. Be2 {[%clk 0:02:35]} 24... Na7 {[%clk 0:02:30.6]} 25. Nd2 {[%clk
0:02:28.6]} 25... g6 {[%clk 0:02:28.8]} 26. f3 {[%clk 0:02:27.4]} 26... Kf8
{[%clk 0:02:28.5]} 27. Ngf1 {[%clk 0:02:27.2]} 27... Be7 {[%clk 0:02:28.4]} 28.
Kf2 {[%clk 0:02:26]} 28... Ke8 {[%clk 0:02:25.4]} 29. Ke3 {[%clk 0:02:26]} 29...
Kd7 {[%clk 0:02:25.8]} 30. Kd3 {[%clk 0:02:25.6]} 30... Kc6 {[%clk 0:02:23.6]}
31. Ne3 {[%clk 0:02:25.8]} 31... Bc8 {[%clk 0:02:23.1]} 32. Nd5 {[%clk
0:02:23.7]} 32... Bd8 {[%clk 0:02:23.5]} 33. Nf1 {[%clk 0:02:22.6]} 33... Be6
{[%clk 0:02:23.3]} 34. Nde3 {[%clk 0:02:16.2]} 34... Nc8 {[%clk 0:02:23.2]} 35.
Kc2 {[%clk 0:02:14.9]} 35... Nd6 {[%clk 0:02:23.3]} 36. Nd2 {[%clk 0:02:13.8]}
36... Bg5 {[%clk 0:02:22.7]} 37. Nef1 {[%clk 0:02:12.9]} 37... h5 {[%clk
0:02:22.7]} 38. Kb2 {[%clk 0:02:06.5]} 38... Bf4 {[%clk 0:02:21.8]} 39. Kc2
{[%clk 0:02:03.1]} 39... h4 {[%clk 0:02:19.8]} 40. Bd3 {[%clk 0:02:03]} 40... f5
{[%clk 0:02:17]} 41. Kb2 {[%clk 0:02:01.8]} 41... Bc4 {[%clk 0:02:03.1]} 42.
Nxc4 {[%clk 0:01:42.6]} 42... bxc4 {[%clk 0:01:39.3]} 43. Bc2 {[%clk 0:01:41.7]}
43... Kd7 {[%clk 0:01:38.9]} 44. Ba4+ {[%clk 0:01:38.9]} 44... Ke6 {[%clk
0:01:37.5]} 45. Bc6 {[%clk 0:01:36.7]} 45... Kf6 {[%clk 0:01:37.8]} 46. Kc2
{[%clk 0:01:35.7]} 46... Kg5 {[%clk 0:01:34.5]} 47. Kd1 {[%clk 0:01:30.1]} 47...
Kf6 {[%clk 0:01:15.1]} 48. Kc2 {[%clk 0:01:26.7]} 48... g5 {[%clk 0:01:12.4]}
49. exf5 {[%clk 0:01:23.5]} 49... Kxf5 {[%clk 0:01:13.3]} 50. Bd7+ {[%clk
0:01:22.8]} 50... Kf6 {[%clk 0:01:12.2]} 51. Bc6 {[%clk 0:01:22.7]} 51... e4
{[%clk 0:01:11.8]} 52. fxe4 {[%clk 0:01:00.8]} 52... Ke5 {[%clk 0:01:10.8]} 53.
Bd5 {[%clk 0:00:36.4]} 53... Kf6 {[%clk 0:01:08.4]} 54. Nd2 {[%clk 0:00:33.9]}
54... Bxd2 {[%clk 0:01:07.2]} 55. Kxd2 {[%clk 0:00:34.8]} 55... Ke5 {[%clk
0:01:07.6]} 56. Ke3 {[%clk 0:00:34.6]} 56... Nb5 {[%clk 0:01:07.9]} 57. Bxc4
{[%clk 0:00:34.4]} 57... Nxc3 {[%clk 0:01:06.9]} 58. Bd3 {[%clk 0:00:34.5]}
58... Na2 {[%clk 0:01:06.7]} 59. b5 {[%clk 0:00:33.9]} 59... Nc3 {[%clk
0:01:06.2]} 60. Kf3 {[%clk 0:00:32.8]} 60... Kd4 {[%clk 0:00:58.9]} 61. Bc2
{[%clk 0:00:22]} 61... Nxb5 {[%clk 0:00:22.3]} 62. Kg4 {[%clk 0:00:21.7]} 62...
Na3 {[%clk 0:00:22.6]} 63. Bb3 {[%clk 0:00:17.2]} 63... Kxe4 {[%clk 0:00:22.2]}
64. Kxg5 {[%clk 0:00:17.8]} 64... Nb5 {[%clk 0:00:22.5]} 65. Kxh4 {[%clk
0:00:18]} 65... Nd4 {[%clk 0:00:22.9]} 66. g4 {[%clk 0:00:18.3]} 66... Nxb3
{[%clk 0:00:21.9]} 67. g5 {[%clk 0:00:18]} 67... Nc5 {[%clk 0:00:22.2]} 68. Kh5
{[%clk 0:00:18.5]} 68... b5 {[%clk 0:00:22.1]} 69. g6 {[%clk 0:00:18.2]} 69...
Ne6 {[%clk 0:00:22.3]} 70. Kh6 {[%clk 0:00:17.4]} 70... b4 {[%clk 0:00:22.6]}
71. h4 {[%clk 0:00:18]} 71... b3 {[%clk 0:00:22.5]} 72. h5 {[%clk 0:00:18.9]}
72... b2 {[%clk 0:00:23]} 73. g7 {[%clk 0:00:19.8]} 73... Nxg7 {[%clk
0:00:21.7]} 74. Kxg7 {[%clk 0:00:20.7]} 74... b1=Q {[%clk 0:00:22.2]} 75. h6
{[%clk 0:00:21.6]} 75... Qb2+ {[%clk 0:00:22.5]} 76. Kg8 {[%clk 0:00:21.2]}
76... Qb8+ {[%clk 0:00:22.3]} 77. Kg7 {[%clk 0:00:21.7]} 77... Kf5 {[%clk
0:00:19.9]} 78. h7 {[%clk 0:00:21.9]} 78... Qc7+ {[%clk 0:00:20.4]} 79. Kg8
{[%clk 0:00:22.2]} 79... Kg6 {[%clk 0:00:20.1]} 0-1

[Event "*** SCC Grand Prix: Titled Tuesday Blitz"]
[Site "Chess.com"]
[Date "2020.07.07"]
[Round "8"]
[White "novocane"]
[Black "gliglu"]
[Result "0-1"]
[WhiteElo "2266"]
[BlackElo "2403"]
[TimeControl "180+1"]
[EndTime "11:37:36 PDT"]
[Termination "gliglu won by resignation"]

1. d4 {[%clk 0:03:00.8]} 1... Nf6 {[%clk 0:02:59]} 2. c4 {[%clk 0:03:00.8]} 2...
e6 {[%clk 0:02:59.1]} 3. Nc3 {[%clk 0:02:59.9]} 3... Bb4 {[%clk 0:02:58.1]} 4.
e3 {[%clk 0:02:58.7]} 4... O-O {[%clk 0:02:57.4]} 5. Ne2 {[%clk 0:02:55.6]} 5...
d5 {[%clk 0:02:57.2]} 6. a3 {[%clk 0:02:54.3]} 6... Be7 {[%clk 0:02:56]} 7. cxd5
{[%clk 0:02:50.7]} 7... exd5 {[%clk 0:02:55.2]} 8. Nf4 {[%clk 0:02:49.4]} 8...
a5 {[%clk 0:02:54.8]} 9. Bd3 {[%clk 0:02:46.9]} 9... c6 {[%clk 0:02:54.5]} 10.
O-O {[%clk 0:02:45.5]} 10... Nbd7 {[%clk 0:02:54.4]} 11. f3 {[%clk 0:02:43]}
11... b6 {[%clk 0:02:49.9]} 12. e4 {[%clk 0:02:37.5]} 12... dxe4 {[%clk
0:02:40]} 13. fxe4 {[%clk 0:02:37.4]} 13... Ba6 {[%clk 0:02:39.2]} 14. Bxa6
{[%clk 0:02:27.7]} 14... Rxa6 {[%clk 0:02:37.7]} 15. e5 {[%clk 0:02:22.7]} 15...
Ne8 {[%clk 0:02:37.3]} 16. Qe2 {[%clk 0:02:08.2]} 16... Ra7 {[%clk 0:02:34.9]}
17. e6 {[%clk 0:02:04.9]} 17... Ndf6 {[%clk 0:02:31.2]} 18. exf7+ {[%clk
0:01:59.5]} 18... Rxf7 {[%clk 0:02:31.1]} 19. Ne6 {[%clk 0:01:55.5]} 19... Qc8
{[%clk 0:02:31]} 20. Ng5 {[%clk 0:01:30.9]} 20... Rf8 {[%clk 0:02:30.3]} 21. Ne6
{[%clk 0:01:29.8]} 21... Nd6 {[%clk 0:02:26.4]} 22. Nxf8 {[%clk 0:01:28]} 22...
Bxf8 {[%clk 0:02:26.3]} 23. Bg5 {[%clk 0:01:23.4]} 23... Rf7 {[%clk 0:02:09.8]}
24. Bxf6 {[%clk 0:01:21.6]} 24... gxf6 {[%clk 0:02:09.6]} 25. Rae1 {[%clk
0:01:17.8]} 25... f5 {[%clk 0:02:08.9]} 26. Kh1 {[%clk 0:01:16.7]} 26... Qd8
{[%clk 0:02:05.3]} 27. Rf3 {[%clk 0:01:04.2]} 27... Bg7 {[%clk 0:01:51.8]} 28.
Rg3 {[%clk 0:00:52]} 28... Qh4 {[%clk 0:01:30.6]} 29. d5 {[%clk 0:00:34.7]}
29... cxd5 {[%clk 0:01:19.6]} 30. Nxd5 {[%clk 0:00:34.3]} 30... Ne4 {[%clk
0:01:19.5]} 31. Rf3 {[%clk 0:00:25.8]} 31... Be5 {[%clk 0:01:17.6]} 32. g3
{[%clk 0:00:22.6]} 32... Qh3 {[%clk 0:01:03.9]} 33. Rg1 {[%clk 0:00:12.2]} 33...
h5 {[%clk 0:00:53]} 34. Qg2 {[%clk 0:00:12.2]} 34... Qg4 {[%clk 0:00:51.8]} 35.
Ne3 {[%clk 0:00:10.9]} 35... Qg5 {[%clk 0:00:50.2]} 36. Rgf1 {[%clk 0:00:08.1]}
36... Nd6 {[%clk 0:00:44.3]} 37. Nd5 {[%clk 0:00:08]} 37... b5 {[%clk
0:00:35.1]} 38. Nf4 {[%clk 0:00:08.2]} 38... Kh7 {[%clk 0:00:32.5]} 39. Qe2
{[%clk 0:00:07.8]} 39... Re7 {[%clk 0:00:27.4]} 40. Re3 {[%clk 0:00:07.9]} 40...
Nc4 {[%clk 0:00:20.7]} 41. Rxe5 {[%clk 0:00:04.6]} 41... Rxe5 {[%clk 0:00:19.7]}
42. Qxh5+ {[%clk 0:00:04.9]} 42... Qxh5 {[%clk 0:00:19.6]} 43. Nxh5 {[%clk
0:00:05.8]} 43... Kg6 {[%clk 0:00:19.5]} 44. Nf4+ {[%clk 0:00:05.6]} 44... Kg5
{[%clk 0:00:19.6]} 45. h4+ {[%clk 0:00:04.6]} 45... Kg4 {[%clk 0:00:19.4]} 46.
Kg2 {[%clk 0:00:04.3]} 46... Ne3+ {[%clk 0:00:19.3]} 47. Kf2 {[%clk 0:00:04.1]}
47... Nxf1 {[%clk 0:00:20.2]} 48. Kxf1 {[%clk 0:00:02.9]} 48... Kxg3 {[%clk
0:00:20.4]} 49. Nd3 {[%clk 0:00:02.9]} 49... Re4 {[%clk 0:00:19.7]} 50. Nf2
{[%clk 0:00:03.3]} 50... Rxh4 {[%clk 0:00:19.4]} 51. Ke2 {[%clk 0:00:02.8]}
51... f4 {[%clk 0:00:19.6]} 52. Ne4+ {[%clk 0:00:02.9]} 52... Kg2 {[%clk
0:00:19.2]} 53. Nd2 {[%clk 0:00:03.1]} 53... Rh3 {[%clk 0:00:18.5]} 54. Nf1
{[%clk 0:00:02.9]} 54... f3+ {[%clk 0:00:17.9]} 55. Ke1 {[%clk 0:00:03.5]} 55...
f2+ {[%clk 0:00:18]} 56. Ke2 {[%clk 0:00:04.2]} 56... Rg3 {[%clk 0:00:17.6]} 57.
Ne3+ {[%clk 0:00:03.6]} 57... Kg1 {[%clk 0:00:17.3]} 58. Nf1 {[%clk 0:00:03.2]}
58... Rg4 {[%clk 0:00:17.1]} 59. Ne3 {[%clk 0:00:02.6]} 59... Re4 {[%clk
0:00:17]} 60. Kd2 {[%clk 0:00:03]} 60... Rxe3 {[%clk 0:00:17.2]} 61. Kxe3 {[%clk
0:00:03.9]} 61... f1=Q {[%clk 0:00:17.7]} 0-1

[Event "*** SCC Grand Prix: Titled Tuesday Blitz"]
[Site "Chess.com"]
[Date "2020.07.07"]
[Round "8"]
[White "Larina_Marija"]
[Black "Varshi_chess"]
[Result "0-1"]
[WhiteElo "2104"]
[BlackElo "2259"]
[TimeControl "180+1"]
[EndTime "11:37:44 PDT"]
[Termination "Varshi_chess won on time"]

1. e4 {[%clk 0:02:59.8]} 1... c5 {[%clk 0:02:58.8]} 2. Nc3 {[%clk 0:02:59.4]}
2... Nc6 {[%clk 0:02:55.1]} 3. g3 {[%clk 0:02:58.7]} 3... e6 {[%clk 0:02:52.1]}
4. Bg2 {[%clk 0:02:58.8]} 4... g6 {[%clk 0:02:52.2]} 5. Nge2 {[%clk 0:02:58.6]}
5... Bg7 {[%clk 0:02:52.3]} 6. O-O {[%clk 0:02:58.1]} 6... Nge7 {[%clk
0:02:52.3]} 7. d3 {[%clk 0:02:58.1]} 7... O-O {[%clk 0:02:52.2]} 8. Be3 {[%clk
0:02:50.5]} 8... Nd4 {[%clk 0:02:52.1]} 9. Qd2 {[%clk 0:02:48]} 9... d6 {[%clk
0:02:48.2]} 10. Nd1 {[%clk 0:02:41.5]} 10... e5 {[%clk 0:02:47.2]} 11. c3 {[%clk
0:02:38.7]} 11... Ne6 {[%clk 0:02:47.3]} 12. Bh6 {[%clk 0:02:37]} 12... f5
{[%clk 0:02:46.5]} 13. Bxg7 {[%clk 0:02:35.8]} 13... Kxg7 {[%clk 0:02:46.2]} 14.
f4 {[%clk 0:02:34.7]} 14... b6 {[%clk 0:02:39.6]} 15. d4 {[%clk 0:02:16.2]}
15... Bb7 {[%clk 0:02:27.2]} 16. d5 {[%clk 0:02:01.6]} 16... Nc7 {[%clk
0:02:20.7]} 17. c4 {[%clk 0:02:00.4]} 17... fxe4 {[%clk 0:02:13.8]} 18. Bxe4
{[%clk 0:01:59.8]} 18... Nf5 {[%clk 0:02:11.1]} 19. fxe5 {[%clk 0:01:54.6]}
19... dxe5 {[%clk 0:02:10.4]} 20. Ne3 {[%clk 0:01:34.1]} 20... Nd4 {[%clk
0:02:02.5]} 21. Ng4 {[%clk 0:01:25.4]} 21... Qd6 {[%clk 0:01:55.1]} 22. Qh6+
{[%clk 0:01:24.6]} 22... Kg8 {[%clk 0:01:55.1]} 23. Nxd4 {[%clk 0:01:11.2]}
23... cxd4 {[%clk 0:01:50.9]} 24. Rae1 {[%clk 0:01:01.9]} 24... Na6 {[%clk
0:01:41.1]} 25. Qg5 {[%clk 0:00:50.5]} 25... Nc5 {[%clk 0:01:19.5]} 26. Nh6+
{[%clk 0:00:49.3]} 26... Kg7 {[%clk 0:01:09]} 27. Nf5+ {[%clk 0:00:49.1]} 27...
Rxf5 {[%clk 0:01:08.4]} 28. Rxf5 {[%clk 0:00:46.3]} 28... Re8 {[%clk 0:00:48.2]}
29. Rf2 {[%clk 0:00:39.2]} 29... Rf8 {[%clk 0:00:29.8]} 30. Rxf8 {[%clk
0:00:36.5]} 30... Kxf8 {[%clk 0:00:29.8]} 31. Rf1+ {[%clk 0:00:33]} 31... Kg7
{[%clk 0:00:29.4]} 32. Bc2 {[%clk 0:00:29.9]} 32... d3 {[%clk 0:00:26.6]} 33.
Bd1 {[%clk 0:00:30]} 33... e4 {[%clk 0:00:25.2]} 34. Qe3 {[%clk 0:00:26.7]}
34... Qe5 {[%clk 0:00:23.1]} 35. Qf4 {[%clk 0:00:24]} 35... Qxf4 {[%clk
0:00:21]} 36. Rxf4 {[%clk 0:00:18.5]} 36... e3 {[%clk 0:00:21]} 37. Kf1 {[%clk
0:00:14.8]} 37... e2+ {[%clk 0:00:16.6]} 38. Bxe2 {[%clk 0:00:14.8]} 38... dxe2+
{[%clk 0:00:16.9]} 39. Kxe2 {[%clk 0:00:15.7]} 39... Bc8 {[%clk 0:00:15.7]} 40.
Kd2 {[%clk 0:00:12.4]} 40... h5 {[%clk 0:00:13]} 41. h4 {[%clk 0:00:12]} 41...
Bf5 {[%clk 0:00:12.7]} 42. Kc3 {[%clk 0:00:11.1]} 42... Kf6 {[%clk 0:00:12.1]}
43. Kd4 {[%clk 0:00:10.9]} 43... Nd7 {[%clk 0:00:11.2]} 44. b4 {[%clk
0:00:10.2]} 44... Ke7 {[%clk 0:00:09.9]} 45. c5 {[%clk 0:00:10.4]} 45... bxc5+
{[%clk 0:00:09.9]} 46. bxc5 {[%clk 0:00:11.3]} 46... Nf6 {[%clk 0:00:09.7]} 47.
c6 {[%clk 0:00:10.8]} 47... Kd6 {[%clk 0:00:09.7]} 48. Rf2 {[%clk 0:00:09.7]}
48... Nxd5 {[%clk 0:00:09.4]} 49. Rb2 {[%clk 0:00:08.8]} 49... Ne7 {[%clk
0:00:09.4]} 50. Rb7 {[%clk 0:00:08.2]} 50... Nxc6+ {[%clk 0:00:09.6]} 51. Kc3
{[%clk 0:00:04.1]} 51... Kc5 {[%clk 0:00:09.1]} 52. Rc7 {[%clk 0:00:03.4]} 52...
Kd5 {[%clk 0:00:09.1]} 53. a4 {[%clk 0:00:03.4]} 53... Kc5 {[%clk 0:00:08.8]}
54. a5 {[%clk 0:00:02]} 54... Kb5 {[%clk 0:00:08.8]} 55. a6 {[%clk 0:00:02.3]}
55... Kb6 {[%clk 0:00:08.8]} 56. Rc8 {[%clk 0:00:01.4]} 56... Ne5 {[%clk
0:00:08.4]} 0-1

[Event "*** SCC Grand Prix: Titled Tuesday Blitz"]
[Site "Chess.com"]
[Date "2020.07.07"]
[Round "8"]
[White "Artem_Sadovsky"]
[Black "Gerodot71"]
[Result "0-1"]
[WhiteElo "2527"]
[BlackElo "2408"]
[TimeControl "180+1"]
[EndTime "11:37:47 PDT"]
[Termination "Gerodot71 won on time"]

1. Nf3 {[%clk 0:03:00.9]} 1... d5 {[%clk 0:02:59.3]} 2. g3 {[%clk 0:03:01.2]}
2... Nd7 {[%clk 0:02:59.1]} 3. Bg2 {[%clk 0:03:02.1]} 3... e5 {[%clk 0:02:59]}
4. O-O {[%clk 0:03:03]} 4... Bd6 {[%clk 0:02:59.1]} 5. b3 {[%clk 0:03:03.6]}
5... Ngf6 {[%clk 0:02:56.6]} 6. Bb2 {[%clk 0:03:04.1]} 6... O-O {[%clk
0:02:56.7]} 7. c4 {[%clk 0:03:04.8]} 7... c6 {[%clk 0:02:54.7]} 8. d3 {[%clk
0:03:02.4]} 8... Qe7 {[%clk 0:02:52.3]} 9. Qc2 {[%clk 0:03:01]} 9... Re8 {[%clk
0:02:21.6]} 10. cxd5 {[%clk 0:02:57.7]} 10... cxd5 {[%clk 0:02:21]} 11. Nc3
{[%clk 0:02:58.3]} 11... a6 {[%clk 0:02:17.2]} 12. Nh4 {[%clk 0:02:48.5]} 12...
Nb6 {[%clk 0:02:16.7]} 13. a4 {[%clk 0:02:48]} 13... Be6 {[%clk 0:02:14.2]} 14.
a5 {[%clk 0:02:47.4]} 14... Nbd7 {[%clk 0:02:09.8]} 15. Rfc1 {[%clk 0:02:41.7]}
15... Rac8 {[%clk 0:02:07]} 16. Nxd5 {[%clk 0:02:41.3]} 16... Nxd5 {[%clk
0:01:46.5]} 17. Qxc8 {[%clk 0:02:41.2]} 17... Rxc8 {[%clk 0:01:47.4]} 18. Rxc8+
{[%clk 0:02:41.4]} 18... Nf8 {[%clk 0:01:47.8]} 19. Rac1 {[%clk 0:02:17.9]}
19... Bxc8 {[%clk 0:01:45.1]} 20. Rxc8 {[%clk 0:02:18.8]} 20... Qd7 {[%clk
0:01:25.4]} 21. Ra8 {[%clk 0:02:12.9]} 21... Ne7 {[%clk 0:01:15.9]} 22. Ra7
{[%clk 0:01:37.7]} 22... Nc6 {[%clk 0:01:14.1]} 23. Ra8 {[%clk 0:01:38.2]} 23...
h6 {[%clk 0:01:03.5]} 24. Be4 {[%clk 0:01:37.6]} 24... g6 {[%clk 0:01:01.2]} 25.
f4 {[%clk 0:01:32.8]} 25... exf4 {[%clk 0:00:56.1]} 26. gxf4 {[%clk 0:01:24]}
26... Bxf4 {[%clk 0:00:52.6]} 27. Kf1 {[%clk 0:01:17.2]} 27... Qh3+ {[%clk
0:00:40.8]} 28. Ng2 {[%clk 0:01:17.5]} 28... Qxh2 {[%clk 0:00:41]} 29. Ba3
{[%clk 0:01:07.9]} 29... Bd6 {[%clk 0:00:40.9]} 30. Bb2 {[%clk 0:01:05.6]} 30...
Bc5 {[%clk 0:00:41.1]} 31. e3 {[%clk 0:01:00.3]} 31... Qh3 {[%clk 0:00:40.9]}
32. Kf2 {[%clk 0:00:59.6]} 32... Qe6 {[%clk 0:00:36.8]} 33. Nf4 {[%clk
0:00:59.2]} 33... Qxb3 {[%clk 0:00:35.7]} 34. Bf6 {[%clk 0:00:58.2]} 34... Be7
{[%clk 0:00:30.8]} 35. Nd5 {[%clk 0:00:29.1]} 35... Bxf6 {[%clk 0:00:17.1]} 36.
Nxf6+ {[%clk 0:00:30]} 36... Kg7 {[%clk 0:00:15.9]} 37. Ne8+ {[%clk 0:00:30.9]}
37... Kh8 {[%clk 0:00:14.9]} 38. Nd6 {[%clk 0:00:30]} 38... Kg7 {[%clk 0:00:07]}
39. Ne8+ {[%clk 0:00:28.8]} 39... Kh8 {[%clk 0:00:07.4]} 40. Nd6 {[%clk
0:00:29.2]} 40... Kg8 {[%clk 0:00:07.4]} 41. Kg3 {[%clk 0:00:19.3]} 41... Qe6
{[%clk 0:00:07.7]} 42. Nxb7 {[%clk 0:00:18.1]} 42... Ne5 {[%clk 0:00:07.8]} 43.
Nc5 {[%clk 0:00:15.4]} 43... Qg4+ {[%clk 0:00:07.6]} 44. Kf2 {[%clk 0:00:15.4]}
44... h5 {[%clk 0:00:07.2]} 45. d4 {[%clk 0:00:13.7]} 45... Nc4 {[%clk
0:00:06.4]} 46. Bf3 {[%clk 0:00:11.8]} 46... Qh4+ {[%clk 0:00:06.2]} 47. Ke2
{[%clk 0:00:12.3]} 47... Qh2+ {[%clk 0:00:06.1]} 48. Kd3 {[%clk 0:00:12.8]}
48... Nd6 {[%clk 0:00:03.9]} 49. Nd7 {[%clk 0:00:11.3]} 49... Kg7 {[%clk
0:00:04.5]} 50. Rxf8 {[%clk 0:00:08.7]} 50... Qb2 {[%clk 0:00:05.4]} 51. Rd8
{[%clk 0:00:07.9]} 51... Qb3+ {[%clk 0:00:05.2]} 52. Ke2 {[%clk 0:00:08.6]}
52... Nc4 {[%clk 0:00:05.8]} 53. Re8 {[%clk 0:00:07]} 53... Qc2+ {[%clk
0:00:06.2]} 54. Kf1 {[%clk 0:00:06.2]} 54... Nd2+ {[%clk 0:00:06.7]} 55. Kg2
{[%clk 0:00:06]} 55... Qf5 {[%clk 0:00:07.2]} 56. Ne5 {[%clk 0:00:05.1]} 56...
Nxf3 {[%clk 0:00:07.3]} 57. Nxf3 {[%clk 0:00:06]} 57... Qg4+ {[%clk 0:00:07.6]}
58. Kf2 {[%clk 0:00:06.7]} 58... h4 {[%clk 0:00:08.5]} 59. Re5 {[%clk
0:00:05.4]} 59... Qg3+ {[%clk 0:00:08.5]} 60. Ke2 {[%clk 0:00:05.1]} 60... Qg2+
{[%clk 0:00:09.1]} 61. Kd3 {[%clk 0:00:05.1]} 61... Qxf3 {[%clk 0:00:10]} 62.
Rf5 {[%clk 0:00:04.3]} 62... Qxf5+ {[%clk 0:00:09.9]} 63. e4 {[%clk 0:00:02.6]}
63... Qxa5 {[%clk 0:00:10.8]} 64. Ke3 {[%clk 0:00:02.8]} 64... h3 {[%clk
0:00:11.2]} 65. Kf4 {[%clk 0:00:03.5]} 65... h2 {[%clk 0:00:10.8]} 66. d5 {[%clk
0:00:04.1]} 66... h1=Q {[%clk 0:00:10.8]} 67. Ke5 {[%clk 0:00:05]} 67... Qc3+
{[%clk 0:00:10.5]} 68. Kd6 {[%clk 0:00:05.9]} 68... Qh2+ {[%clk 0:00:10.4]} 69.
Ke7 {[%clk 0:00:06]} 69... Qcc7+ {[%clk 0:00:10]} 0-1